Cogmind - Beta 11.1 @@@ ROGUE MODE // 2022.09.03 @ 20:17:37 Player: Bert Result: Destroyed by as-07153 with Assembled Rifle Performance ------------- Evolutions (1) 500 Regions Visited (3) 600 Robots Destroyed (17) 85 Value Destroyed (444) 444 Prototype IDs (3) 60 Alien Tech Used (0) 0 Bonus (0) 0 TOTAL SCORE: 1689 Bonus ------- None Cogmind --------- Core Integrity 0/400 Matter 300/300 Energy 100/100 System Corruption 11% Temperature Cool (0) Movement Core (350) Ox6 Location -9/Mines Parts ------- > --- POWER (1) -------- (None) > --- PROPULSION (2) --- (None) > --- UTILITY (4) ------ Large Storage Unit Signal Interpreter > --- WEAPON (2) ------- (None) > --- INVENTORY (15) --- Light Deuterium Engine Cryofiber Web Melee Analysis Suite Particle Charger Particle Charger Hardened Medium Armor Plating Hardlight Generator Trap Extractor (0/4) Assault Rifle Mining Laser Hammer Flail Peak State ------------ > --- POWER ------------ Light Deuterium Engine > --- PROPULSION ------- Light Treads Light Treads > --- UTILITY ---------- Cryofiber Web Large Storage Unit Signal Interpreter Hardened Medium Armor Plating > --- WEAPON ----------- Light EM Pulse Cannon Assault Rifle > --- INVENTORY -------- Light Deuterium Engine Light Deuterium Engine Light Treads Cryofiber Web Melee Analysis Suite Particle Charger Particle Charger Hardened Medium Armor Plating Hardlight Generator Trap Extractor Assault Rifle Light Assault Rifle Mining Laser Hammer [Rating: 19] Favorites ----------- Power Light Deuterium Engine Engine Light Deuterium Engine Propulsion Light Treads Treads Light Treads Utility Signal Interpreter Device Cryofiber Web Storage Large Storage Unit Processor Signal Interpreter Protection Hardened Medium Armor Plating Weapon Assault Rifle Energy Gun EM Pulse Gun Energy Cannon Light EM Pulse Cannon Ballistic Gun Assault Rifle Build | -11 -10 -9 -9 ------- Run | Scr Mat Mat Min Slots Evolved 2 | . . 2 . Power . | . . . . Propulsion . | . . . . Utility 2 | . . 2 . Weapon . | . . . . Parts Attached 23 | 7 3 10 3 Power 6 | 2 . 3 1 Engine 6 | 2 . 3 1 Core . | . . . . Reactor . | . . . . Propulsion 4 | 2 . 1 1 Treads 4 | 2 . 1 1 Leg . | . . . . Wheel . | . . . . Hover . | . . . . Flight . | . . . . Utility 7 | 1 2 4 . Device 2 | . . 2 . Storage 2 | 1 1 . . Processor 1 | . 1 . . Hackware . | . . . . Protection 2 | . . 2 . Artifact . | . . . . Weapon 6 | 2 1 2 1 Energy Gun 2 | 1 . . 1 Energy Cannon 1 | . . 1 . Ballistic Gun 3 | 1 1 1 . Ballistic Cannon . | . . . . Launcher . | . . . . Special Weapon . | . . . . Impact Weapon . | . . . . Slashing Weapon . | . . . . Piercing Weapon . | . . . . Special Melee Weapon . | . . . . Unidentified Prototypes . | . . . . Parts Lost 8 | . . . 8 Power . | . . . . Propulsion 3 | . . . 3 Utility 2 | . . . 2 Weapon 3 | . . . 3 Highest Loss Streak 8 | . . . 8 To Critical Strikes . | . . . . Average Slot Usage (%) 97 | . 99 99 80 Engine 12 | . 14 11 10 Treads 24 | . 28 22 15 Device 5 | . . 10 10 Storage 12 | . 14 11 11 Processor 12 | . 13 11 11 Protection 5 | . . 11 8 Energy Gun 6 | . 14 . 5 Energy Cannon 3 | . . 6 2 Ballistic Gun 14 | . 14 15 8 Naked Turns . | . . . . Heaviest Build 40 | 14 29 40 40 Greatest Support 40 | 40 40 40 40 Greatest Overweight (x) 6 | . . . 6 Average Overweight (x) . | . . . . Largest Inventory Capacity 15 | 8 15 15 15 Average Capacity 12 | 7 9 15 15 Most Carried 15 | 2 10 15 14 Average Carried 8 | 1 5 10 13 Final Capacity 15 | 8 15 15 15 Final Carried 14 | 2 10 14 12 Class Distribution -------------------- 100% | Mutant Dominant Class ---------------- Mutant | -10/Materials Mutant | -9/Materials Mutant | -9/Mines Resources | -11 -10 -9 -9 ----------- Run | Scr Mat Mat Min Matter Collected 559 | 215 162 176 6 Remotely . | . . . . Salvage Created 631 | . 312 319 . Parts 31 | . 19 12 . Haulers Intercepted 1 | . . 1 . Recyclers Shooed . | . . . . Parts Field Recycled . | . . . . Retrieved Matter . | . . . . Parts Self-Destructed . | . . . . Prevented . | . . . . Kills | -11 -10 -9 -9 ------- Run | Scr Mat Mat Min Combat Hostiles Destroyed 13 | . 8 5 . Guns 7 | . 6 1 . Cannons 4 | . . 4 . AOE 1 | . 1 . . Classes Destroyed 6 | . 3 3 . Hauler 1 | . . 1 . Operator 1 | . 1 . . Watcher 2 | . . 2 . Swarmer 3 | . 3 . . Grunt 9 | . 5 4 . Sentry 1 | . . 1 . Best Kill Streak 3 | . 3 3 . Combat Bots Only 3 | . 3 2 . Max Kills in Single Turn 2 | . 2 1 . Gunslinging 1 | . 1 . . Exploded 1 | . 1 . . Melee . | . . . . Uniques/NPCs Destroyed . | . . . . Combat | -11 -10 -9 -9 -------- Run | Scr Mat Mat Min Damage Taken 1819 | . 298 199 1322 Core 461 | . 52 . 409 Absorbed by Shields . | . . . . Core Remaining (%) 89 | 100 79 . . Volleys Fired 49 | . 29 18 2 Largest 2 | . 2 2 2 Hottest 76 | . 60 76 76 Shots Fired 98 | . 58 36 4 Gun 85 | . 58 24 3 Cannon 13 | . . 12 1 Launcher . | . . . . Special . | . . . . Kinetic 55 | . 29 24 2 Thermal 1 | . . . 1 Explosive . | . . . . Electromagnetic 42 | . 29 12 1 Robot Hit Streak 14 | . 7 14 3 Robot Miss Streak 4 | . 4 2 2 Penetration Max . | . . . . Secondary Targets 1 | . 1 . . Max Gunslinging Chain 1 | . 1 . . Shots Hit Robots 61 | . 34 24 3 Core Hits 24 | . 12 10 2 Critical Kills . | . . . . Critical Parts Destroyed 1 | . . 1 . Critical Strikes 2 | . . 2 . Destroy 1 | . . 1 . Corrupt 1 | . . 1 . Melee Attacks . | . . . . Impact . | . . . . Slashing . | . . . . Piercing . | . . . . Sneak Attacks . | . . . . Combat Hostiles . | . . . . Follow-up Attacks . | . . . . Damage Inflicted 983 | . 487 451 45 Guns 631 | . 427 163 41 Cannons 288 | . . 288 . Explosions 60 | . 60 . . Melee . | . . . . Ramming 4 | . . . 4 Kinetic 351 | . 162 163 26 Thermal 75 | . 60 . 15 Explosive . | . . . . Electromagnetic 553 | . 265 288 . Impact . | . . . . Slashing . | . . . . Piercing . | . . . . Highest Corruption 11 | . . . 11 Average Corruption 7 | . . . 7 Corruption Purged . | . . . . Corruption Blocked . | . . . . Effects 1 | . . . 1 Parts Rejected 1 | . . . 1 Overload Shots . | . . . . Overflow Damage . | . . . . Projectiles . | . . . . Explosions . | . . . . Melee . | . . . . Knockbacks . | . . . . Impact . | . . . . Kinetic . | . . . . Secondary . | . . . . Self-Inflicted Damage . | . . . . Shots . | . . . . Rammed 1 | . . . 1 Targets Rammed 1 | . . . 1 Kicked . | . . . . Crushed . | . . . . Highest Temperature 57 | . 57 38 . Average Temperature 30 | . 31 21 . Received Heat Transfer 770 | . 135 75 560 Siege Activations . | . . . . Robots Corrupted 1 | . 1 . . Combat Hostiles 1 | . 1 . . Parts Fried 2 | . . 2 . Impact Corruptions . | . . . . Robots Melted . | . . . . Combat Hostiles . | . . . . Parts Melted . | . . . . Heat Transferred 87 | . 50 . 37 Parts Sabotaged . | . . . . Parts Stolen . | . . . . Parts Stripped . | . . . . Power Chain Reactions 1 | . 1 . . Missiles Intercepted . | . . . . Alert | -11 -10 -9 -9 ------- Run | Scr Mat Mat Min Peak Influence 250 | . 209 250 46 Initial 31 | . . 29 31 Average 55 | . 45 79 23 Maximum Alert Level 1 | . 1 1 . Low Security (%) 97 | 100 99 95 100 Level 1 2 | . . 4 . Level 2 . | . . . . Level 3 . | . . . . Level 4 . | . . . . Level 5 . | . . . . High Security . | . . . . Max Security . | . . . . Squads Dispatched 3 | . 1 2 . Investigation 1 | . . 1 . Extermination . | . . . . Reinforcement 2 | . 1 1 . Assault . | . . . . Garrison . | . . . . Intercept . | . . . . Searches Triggered . | . . . . Construction Impeded . | . . . . Haulers Reinforced . | . . . . Active Scanning Responses . | . . . . Cargo Convoy Interrupts . | . . . . Stealth | -11 -10 -9 -9 --------- Run | Scr Mat Mat Min Distress Signals 2 | . 2 . . Communications Jammed . | . . . . Distress Signals . | . . . . Times Spotted 48 | . 15 13 20 Peak Tracking Total 20 | . 6 5 20 Tactical Retreats 3 | . 1 . 2 Traps | -11 -10 -9 -9 ------- Run | Scr Mat Mat Min Traps Triggered 2 | . 1 1 . Indirectly . | . . . . Trap Hack Attempts . | . . . . Triggered . | . . . . Disarmed . | . . . . Reprogrammed . | . . . . Reused . | . . . . Traps Extracted . | . . . . Installed . | . . . . Triggered . | . . . . Machines | -11 -10 -9 -9 ---------- Run | Scr Mat Mat Min Machines Disabled . | . . . . Max in Single Turn . | . . . . Machines Sabotaged . | . . . . Garrisons Compromised . | . . . . Overloaded Fab Kills . | . . . . Hacking | -11 -10 -9 -9 --------- Run | Scr Mat Mat Min Machines Accessed 8 | . 3 5 . Terminals 6 | . 3 3 . Fabricators . | . . . . Repair Stations 1 | . . 1 . Recycling Units . | . . . . Scanalyzers 1 | . . 1 . Garrison Access . | . . . . Total Hacks 22 | . 8 14 . Successful 16 | . 6 10 . Failed 6 | . 2 4 . Catastrophic 2 | . . 2 . Database Lockouts . | . . . . Manual 6 | . . 6 . Terminals 19 | . 8 11 . Fabricators . | . . . . Repair Stations 1 | . . 1 . Recycling Units . | . . . . Scanalyzers 2 | . . 2 . Garrison Access . | . . . . Terminal Hacks 13 | . 6 7 . Record 5 | . . 5 . Prototype ID Bank 1 | . 1 . . Alert Level 2 | . 2 . . Locate Traps 2 | . 1 1 . Maintenance Status 1 | . 1 . . Hauler Manifests 1 | . 1 . . Zone Layout 1 | . . 1 . Fabricator Hacks . | . . . . Repair Station Hacks 1 | . . 1 . Scan Component 1 | . . 1 . Recycling Unit Hacks . | . . . . Scanalyzer 2 | . . 2 . Insert Component 1 | . . 1 . Analyze 1 | . . 1 . Garrison Access Hacks . | . . . . Unauthorized Hacks . | . . . . Terminals . | . . . . Fabricators . | . . . . Repair Stations . | . . . . Recycling Units . | . . . . Scanalyzers . | . . . . Garrison Access . | . . . . Data Cores Recovered 1 | . 1 . . Used 1 | . 1 . . Hacking Detections 7 | . 3 4 . Full Trace Events . | . . . . Feedback Events . | . . . . Feedback Blocked . | . . . . Robot Schematics Acquired . | . . . . Robots Built . | . . . . Authchips . | . . . . Time . | . . . . Total Robot Build Rating . | . . . . Part Schematics Acquired 1 | . . 1 . Parts Built . | . . . . Authchips . | . . . . Time . | . . . . Total Part Build Rating . | . . . . Parts Repaired . | . . . . Time . | . . . . Parts Recycled . | . . . . Recycled Matter . | . . . . Retrieved Matter . | . . . . Retrieved Components . | . . . . Parts Scanalyzed 1 | . . 1 . Part Schematics Acquired 1 | . . 1 . Parts Damaged . | . . . . Bothacking | -11 -10 -9 -9 ------------ Run | Scr Mat Mat Min Used RIF Installer . | . . . . Robots Hacked . | . . . . Non-combat . | . . . . Combat . | . . . . Robot Hacks Applied . | . . . . Relay Couplers Released . | . . . . Fabnet Peak Effective % . | . . . . Robots Rewired . | . . . . Allies Hacked . | . . . . Hacks Repelled . | . . . . Allies | -11 -10 -9 -9 -------- Run | Scr Mat Mat Min Total Allies . | . . . . Largest Group . | . . . . Highest-Rated Group . | . . . . Highest-Rated Ally . | . . . . Total Orders . | . . . . Ally Attacks . | . . . . Total Damage . | . . . . Kills . | . . . . Allies Corrupted . | . . . . Allies Melted . | . . . . Intel | -11 -10 -9 -9 ------- Run | Scr Mat Mat Min Robot Analysis Total . | . . . . Derelict Logs Recovered . | . . . . Drone Launches . | . . . . Drone Recoveries . | . . . . Exploration | -11 -10 -9 -9 ------------- Run | Scr Mat Mat Min Turns Passed 1265 | 70 539 547 109 Spaces Moved 616 | 40 257 274 45 Core 7 | 4 . . 3 Treads 609 | 36 257 274 42 Legs . | . . . . Wheels . | . . . . Hover . | . . . . Flight . | . . . . Fastest Speed 50 | 50 160 160 160 Average Speed 162 | 149 160 160 210 Slowest Speed 350 | 160 160 160 350 Overloaded Moves . | . . . . Propulsion Burnouts . | . . . . Robots Hopped . | . . . . Cave-ins Triggered . | . . . . Exploration Rate (%) 24 | 4 47 33 15 Regions Visited 3 Branch Regions 1 Pre-discovered Areas . | . . . . Known Exits Taken 2 | . 1 1 . Unknown Exits Taken 1 | 1 . . . Scrap Searched 1 | . . . 1 Spaces Dug . | . . . . Terrain Destroyed 3 | . 3 . . Melee . | . . . . Projectile . | . . . . AOE 3 | . 3 . . Terrain Rammed . | . . . . Walls Destroyed . | . . . . Machines Disabled . | . . . . Actions | -11 -10 -9 -9 --------- Run | Scr Mat Mat Min Total 776 | 47 326 348 55 Wait 59 | . 30 25 4 Move 613 | 39 256 273 45 Hop . | . . . . Pick Up 20 | 1 7 12 . Fast Attach 8 | 6 1 1 . Attach 4 | . . 2 2 Detach 1 | . . 1 . Swap 11 | 1 2 7 1 Drop 10 | . 1 9 . Fire 49 | . 29 18 2 Melee . | . . . . Ram . | . . . . Kick . | . . . . Crush 1 | . . . 1 Escape Stasis . | . . . . Rewire . | . . . . Trap . | . . . . Miscellaneous . | . . . . Route ------- -11/Scrapyard -10/Materials (discovered 2 exits: *Mat / *Min) -9/Materials -9/Mines History --------- Turn | Location | Event 24 | -11/Scrapyard | Discovered new exit (range 16) 71 | -11/Scrapyard | Entered Materials 222 | -10/Materials | Discovered new exit (range 15) 314 | -10/Materials | Build established: Mutant 352 | -10/Materials | Identified exit to Mines 579 | -10/Materials | Discovered new exit (range 16) 608 | -10/Materials | Identified exit to Materials 610 | -10/Materials | Entered another Materials area 610 | -9/Materials | Evolved 2 slots: Utility x2 1127 | -9/Materials | Discovered new exit (range 16) 1156 | -9/Materials | Identified exit to Mines 1157 | -9/Materials | Entered Mines 1158 | -9/Mines | Assembled infested the area 1250 | -9/Mines | Core integrity fell below 50% 1254 | -9/Mines | System corruption reached 10% 1263 | -9/Mines | Core integrity fell below 20% 1266 | -9/Mines | Destroyed by as-07153 with Assembled Rifle Last Messages --------------- 01231_ Beam Rifle destroyed. 01231_ Hrd. Medium Armor Plating destroyed. 01231_ System corrupted by crushing effect (+5). 01231_ System corrupted by crushing effect (+1). 01238_ Assault Rifle destroyed. 01242_ An audio recording is triggered: "If you're looking for Megawrench, sorry but we're not in our cave right now, after essentially being evicted by all these Unaware tunnelers." 01245_ "Blame H1-IDC, who apparently didn't care about the consequences of repeatedly making a mess in Materials. Shooting at robots and generally destroying stuff raised the alert level high enough to trigger assault squads over in the main complex, and they later decided the best way to defend their interests would be to start expanding in this direction." 01249_ Lgt. Treads destroyed. 01253_ Cryofiber Web destroyed. 01253_ System corrupted by crushing effect (+5). 01255_ System corrupted: Lgt. Deuterium Engine rejected. 01255_ Slammed into as-07153. 01256_ Lgt. Treads destroyed. 01257_ Knocked back. Map ----- +----------------------------------------------------+ | ???????????????????????????????? | | ???????????????????????????????? | | ??????????????????????????###### | | ??????????################# # | | ??????? % | | ??????? | | ??????????????####### ##### | | ????????????????????# #???### | | ????????????????????# #?????# # | | ????????????????????# #?????# # | | ????????????????????# #?????# # | | ????????????????????# #?????# | | ????????????????????# #?????# | | ??????????????????### #????? " | | ??????????????????# #????? | | ??????????????????# ###????? | | ??????????????????# #?????? | | ??????????????????# #?????? | | ??????????######### #?????? | | ??????????# #??????? # | | ??????????# ### #####??????????? | | ??????###?????# #??????????????? | | ??????# ?????# #??????????????? | | ??????# #?????# #??????????????? | | ??????# #?????# #??????????????? | | ?????##@#?????# #??????????????? | | ????##aa##????# ##?????????????? | | ????# a ###### ##????????????? | | ????# a #????????????? | | ????## a ##????????????? | | ?????## * ####?????????????? | | ??????#### ##????????????????? | | ?????????#####?????????????????? | | ???????????????????????????????? | | ???????????????????????????????? | | ???????????????????????????????? | | ???????????????????????????????? | | ???????????????????????????????? | | ???????????????????????????????? | | ???????????????????????????????? | | ???????????????????????????????? | | ???????????????????????????????? | | ???????????????????????????????? | | ???????????????????????????????? | | ???????????????????????????????? | | ???????????????????????????????? | | ???????????????????????????????? | | ???????????????????????????????? | | ???????????????????????????????? | | ???????????????????????????????? | +----------------------------------------------------+ Best States ------------- Heat Dissipation 42 Energy Generation 14 Energy Capacity 250 Matter Stores 300 Matter Capacity 300 Sight Range 16 Terrain Scan Density 10 Base Temperature (-) 100 Armor Coverage 225 Evasion (%) 40 Recoil Reduction 2 Item Schematics ----------------- Hardlight Generator | -9/Materials | Scanalyzed Robot Schematics ------------------ None Fabricated ------------ Nothing Alien Tech Used ----------------- None Achievements -------------- None Challenges ------------ None Game ------ Seed HardlightTargetingModule Manual? 0 Play Time 00:22:01 Cumulative 164.8 hours Start 2022.09.03 @ 19:52:52 End 2022.09.03 @ 20:17:37 Sessions 1 Manual Loads 0 Difficulty Rogue Special Mode None Game No. 213 Rogue 213 Adventurer 0 Explorer 0 Win Type - Total 1 Types 1/0/0/0/0/0/0/0/0 Lore% 35 Gallery% 57 Achievement% 41 Wizard Run 0 Options --------- ASCII 0 Keyboard 1 Movement Numpad Keybinds 0 Fullscreen 1 Font 12/Terminus Map View 83x54 Tactical HUD 1 Map Filters NONE Filters NONE Steam 1 RUN: 96538a86-7265-4ee7-960c-d0fd6384a30a